[Event "Titled Tuesday Blitz October 11 Early 2022"]
[White "Toshali, V"]
[Black "Piesik, Piotr"]
[WhiteFideId "5072611"]
[BlackFideId "1136194"]
[WhiteElo "1973"]
[BlackElo "2323"]
[Result "0-1"]
[Round "02"]
[TimeControl "180+1"]
[Date "2022.10.12"]
[WhiteClock "0:00:14"]
[BlackClock "0:01:13"]

1. d4 {[%clk 0:02:59]}  c5 {[%clk 0:02:59]} 2. c3 {[%clk 0:02:47]}  Nf6 {[%clk 0:02:58]} 3. Nf3 {[%clk 0:02:45]}  d5 {[%clk 0:02:58]} 4. Bf4 {[%clk 0:02:44]}  Bf5 {[%clk 0:02:56]} 5. Nbd2 {[%clk 0:02:44]}  Nbd7 {[%clk 0:02:56]} 6. Qb3 {[%clk 0:02:42]}  Qb6 {[%clk 0:02:55]} 7. dxc5 {[%clk 0:02:22]}  Nxc5 {[%clk 0:02:55]} 8. Qxb6 {[%clk 0:02:17]}  axb6 {[%clk 0:02:55]} 9. Nd4 {[%clk 0:02:10]}  Bd7 {[%clk 0:02:53]} 10. g3 {[%clk 0:01:39]}  e6 {[%clk 0:02:52]} 11. Bg2 {[%clk 0:01:39]}  Be7 {[%clk 0:02:45]} 12. O-O {[%clk 0:01:35]}  O-O {[%clk 0:02:45]} 13. N2b3 {[%clk 0:01:30]}  Rfc8 {[%clk 0:02:41]} 14. Nf3 {[%clk 0:01:19]}  Nfe4 {[%clk 0:02:34]} 15. Ne5 {[%clk 0:01:17]}  Be8 {[%clk 0:02:28]} 16. f3 {[%clk 0:01:08]}  Nd6 {[%clk 0:02:25]} 17. Rfd1 {[%clk 0:01:00]}  f6 {[%clk 0:02:17]} 18. Nd3 {[%clk 0:00:57]}  Na4 {[%clk 0:02:15]} 19. Bxd6 {[%clk 0:00:41]}  Bxd6 {[%clk 0:02:15]} 20. Nd4 {[%clk 0:00:34]}  Bd7 {[%clk 0:02:08]} 21. e4 {[%clk 0:00:21]}  dxe4 {[%clk 0:01:52]} 22. fxe4 {[%clk 0:00:18]}  e5 {[%clk 0:01:51]} 23. Ne2 {[%clk 0:00:18]}  Bb5 {[%clk 0:01:47]} 24. Nec1 {[%clk 0:00:16]}  Be7 {[%clk 0:01:39]} 25. Kf2 {[%clk 0:00:16]}  Rd8 {[%clk 0:01:32]} 26. Bf1 {[%clk 0:00:15]}  Bc4 {[%clk 0:01:15]} 27. b3 {[%clk 0:00:15]}  Nxc3 {[%clk 0:01:15]} 28. Rd2 {[%clk 0:00:15]}  Nxe4+ {[%clk 0:01:14]} 29. Ke3 {[%clk 0:00:15]}  Nxd2 {[%clk 0:01:14]} 30. Kxd2 {[%clk 0:00:16]}  Bxd3 {[%clk 0:01:13]} 31. Bxd3 {[%clk 0:00:13]}  e4 {[%clk 0:01:13]} 32. Ke3 {[%clk 0:00:13]}  exd3 {[%clk 0:01:13]} 33. Nxd3 {[%clk 0:00:13]}  Bc5+ {[%clk 0:01:13]} 34. Nxc5 {[%clk 0:00:13]}  bxc5 {[%clk 0:01:13]} 35. Rd1 {[%clk 0:00:14]}  Rxd1 {[%clk 0:01:13]} 0-1


[Site "https://www.chess.com"]

[Event "Titled Tuesday Blitz October 11 Early 2022"]
[White "Tristan, Leonardo"]
[Black "Boraso, Alessio"]
[WhiteFideId "113816"]
[BlackFideId "848077"]
[WhiteElo "2446"]
[BlackElo "2286"]
[Result "1-0"]
[Round "02"]
[TimeControl "180+1"]
[Date "2022.10.12"]
[WhiteClock "0:00:28"]
[BlackClock "0:00:01"]

1. d4 {[%clk 0:03:00]}  Nf6 {[%clk 0:02:59]} 2. Nf3 {[%clk 0:03:01]}  d5 {[%clk 0:02:58]} 3. Bf4 {[%clk 0:03:01]}  e6 {[%clk 0:02:54]} 4. e3 {[%clk 0:03:01]}  Bd6 {[%clk 0:02:54]} 5. Bg3 {[%clk 0:03:01]}  O-O {[%clk 0:02:54]} 6. c4 {[%clk 0:03:01]}  Ne4 {[%clk 0:02:46]} 7. Nc3 {[%clk 0:03:01]}  f5 {[%clk 0:02:42]} 8. Bxd6 {[%clk 0:02:52]}  Qxd6 {[%clk 0:02:32]} 9. Bd3 {[%clk 0:02:42]}  c6 {[%clk 0:02:29]} 10. O-O {[%clk 0:02:38]}  Nd7 {[%clk 0:02:27]} 11. Rc1 {[%clk 0:02:38]}  Ndf6 {[%clk 0:02:20]} 12. Ne5 {[%clk 0:02:37]}  Bd7 {[%clk 0:02:20]} 13. f3 {[%clk 0:02:34]}  Nxc3 {[%clk 0:02:20]} 14. Rxc3 {[%clk 0:02:35]}  Be8 {[%clk 0:02:20]} 15. Qd2 {[%clk 0:02:27]}  Bh5 {[%clk 0:02:18]} 16. cxd5 {[%clk 0:02:26]}  exd5 {[%clk 0:02:17]} 17. Bxf5 {[%clk 0:02:25]}  Rae8 {[%clk 0:01:56]} 18. a3 {[%clk 0:02:24]}  g5 {[%clk 0:01:40]} 19. g4 {[%clk 0:02:17]}  Bf7 {[%clk 0:01:37]} 20. b4 {[%clk 0:02:11]}  Be6 {[%clk 0:01:34]} 21. Bb1 {[%clk 0:02:11]}  Nd7 {[%clk 0:01:31]} 22. f4 {[%clk 0:02:05]}  Nf6 {[%clk 0:00:43]} 23. Qg2 {[%clk 0:01:56]}  Nd7 {[%clk 0:00:27]} 24. Qg3 {[%clk 0:01:53]}  Re7 {[%clk 0:00:25]} 25. h4 {[%clk 0:01:53]}  gxh4 {[%clk 0:00:21]} 26. Qxh4 {[%clk 0:01:53]}  Rg7 {[%clk 0:00:22]} 27. Kh2 {[%clk 0:01:41]}  Nxe5 {[%clk 0:00:21]} 28. dxe5 {[%clk 0:01:41]}  Qd7 {[%clk 0:00:15]} 29. f5 {[%clk 0:01:31]}  Qc7 {[%clk 0:00:15]} 30. Qg3 {[%clk 0:01:25]}  Rg5 {[%clk 0:00:05]} 31. e4 {[%clk 0:01:20]}  Qg7 {[%clk 0:00:05]} 32. Rg1 {[%clk 0:00:58]}  d4 {[%clk 0:00:05]} 33. Rf3 {[%clk 0:00:57]}  h5 {[%clk 0:00:06]} 34. gxh5 {[%clk 0:00:38]}  Rxh5+ {[%clk 0:00:04]} 35. Qh3 {[%clk 0:00:38]}  Rxh3+ {[%clk 0:00:04]} 36. Rxh3 {[%clk 0:00:33]}  Bc4 {[%clk 0:00:01]} 37. Rxg7+ {[%clk 0:00:30]}  Kxg7 {[%clk 0:00:02]} 38. Bd3 {[%clk 0:00:30]}  Bxd3 {[%clk 0:00:01]} 39. Rxd3 {[%clk 0:00:31]}  Re8 {[%clk 0:00:02]} 40. Rxd4 {[%clk 0:00:31]}  Rxe5 {[%clk 0:00:02]} 41. Kg3 {[%clk 0:00:32]}  Kf6 {[%clk 0:00:02]} 42. Kf4 {[%clk 0:00:32]}  Re7 {[%clk 0:00:03]} 43. e5+ {[%clk 0:00:31]}  Kf7 {[%clk 0:00:03]} 44. f6 {[%clk 0:00:28]}  Re8 {[%clk 0:00:02]} 45. Kf5 {[%clk 0:00:27]}  Rh8 {[%clk 0:00:01]} 46. e6+ {[%clk 0:00:27]}  Ke8 {[%clk 0:00:02]} 47. f7+ {[%clk 0:00:27]}  Ke7 {[%clk 0:00:01]} 48. Rd7+ {[%clk 0:00:28]}  Kf8 {[%clk 0:00:01]} 49. Rd8+ {[%clk 0:00:28]} 1-0


[Site "https://www.chess.com"]

[Event "Titled Tuesday Blitz October 11 Early 2022"]
[White "Troltenier, Dirk"]
[Black "Kouskoutis, Georgios-Alexandros"]
[WhiteFideId "4606400"]
[BlackFideId "4234049"]
[WhiteElo "2273"]
[BlackElo "2187"]
[Result "0-1"]
[Round "02"]
[TimeControl "180+1"]
[Date "2022.10.12"]
[WhiteClock "0:00:00"]
[BlackClock "0:00:04"]

1. e4 {[%clk 0:02:58]}  c5 {[%clk 0:03:00]} 2. c3 {[%clk 0:02:57]}  g6 {[%clk 0:02:58]} 3. d4 {[%clk 0:02:54]}  cxd4 {[%clk 0:02:59]} 4. cxd4 {[%clk 0:02:55]}  d5 {[%clk 0:03:00]} 5. exd5 {[%clk 0:02:53]}  Nf6 {[%clk 0:02:28]} 6. Nc3 {[%clk 0:02:53]}  Bg7 {[%clk 0:02:28]} 7. Qb3 {[%clk 0:02:53]}  O-O {[%clk 0:02:27]} 8. Be2 {[%clk 0:02:53]}  a6 {[%clk 0:01:13]} 9. Bf3 {[%clk 0:02:52]}  Nbd7 {[%clk 0:00:31]} 10. Nge2 {[%clk 0:02:47]}  Ne8 {[%clk 0:00:31]} 11. O-O {[%clk 0:02:41]}  Nd6 {[%clk 0:00:32]} 12. Bf4 {[%clk 0:02:20]}  b5 {[%clk 0:00:31]} 13. a4 {[%clk 0:02:19]}  bxa4 {[%clk 0:00:29]} 14. Nxa4 {[%clk 0:02:14]}  Rb8 {[%clk 0:00:28]} 15. Qd3 {[%clk 0:01:49]}  Rb4 {[%clk 0:00:23]} 16. Rfc1 {[%clk 0:01:20]}  Nb6 {[%clk 0:00:20]} 17. Nc5 {[%clk 0:01:02]}  Bf5 {[%clk 0:00:20]} 18. Qd2 {[%clk 0:01:00]}  Rc4 {[%clk 0:00:18]} 19. b3 {[%clk 0:00:57]}  Rxc1+ {[%clk 0:00:18]} 20. Qxc1 {[%clk 0:00:57]}  Nd7 {[%clk 0:00:12]} 21. Rxa6 {[%clk 0:00:54]}  Nb5 {[%clk 0:00:05]} 22. Qc4 {[%clk 0:00:50]}  Nd6 {[%clk 0:00:05]} 23. Bxd6 {[%clk 0:00:42]}  exd6 {[%clk 0:00:06]} 24. Rxd6 {[%clk 0:00:41]}  Qe7 {[%clk 0:00:06]} 25. Nxd7 {[%clk 0:00:34]}  Qxd6 {[%clk 0:00:05]} 26. Nxf8 {[%clk 0:00:32]}  Bxf8 {[%clk 0:00:06]} 27. Nc3 {[%clk 0:00:27]}  Qa3 {[%clk 0:00:05]} 28. Ne2 {[%clk 0:00:19]}  Qa1+ {[%clk 0:00:04]} 29. Qc1 {[%clk 0:00:20]}  Qa2 {[%clk 0:00:02]} 30. g4 {[%clk 0:00:18]}  Bd7 {[%clk 0:00:02]} 31. Qc7 {[%clk 0:00:17]}  Bb5 {[%clk 0:00:02]} 32. Nc3 {[%clk 0:00:13]}  Qa1+ {[%clk 0:00:03]} 33. Kg2 {[%clk 0:00:13]}  Qf1+ {[%clk 0:00:03]} 34. Kg3 {[%clk 0:00:14]}  Qg1+ {[%clk 0:00:03]} 35. Kh3 {[%clk 0:00:12]}  Bf1+ {[%clk 0:00:04]} 36. Kh4 {[%clk 0:00:11]}  Qxf2+ {[%clk 0:00:04]} 37. Qg3 {[%clk 0:00:09]}  Be7+ {[%clk 0:00:05]} 38. g5 {[%clk 0:00:08]}  Qxd4+ {[%clk 0:00:06]} 39. Ne4 {[%clk 0:00:07]}  h6 {[%clk 0:00:05]} 40. Qg4 {[%clk 0:00:05]}  hxg5+ {[%clk 0:00:05]} 41. Kg3 {[%clk 0:00:05]}  Qe5+ {[%clk 0:00:04]} 42. Kf2 {[%clk 0:00:05]}  Ba6 {[%clk 0:00:04]} 43. d6 {[%clk 0:00:04]}  Bxd6 {[%clk 0:00:04]} 44. Nxg5 {[%clk 0:00:04]}  Qxh2+ {[%clk 0:00:04]} 45. Ke3 {[%clk 0:00:04]}  Qe5+ {[%clk 0:00:04]} 46. Kf2 {[%clk 0:00:04]}  Bc5+ {[%clk 0:00:04]} 47. Kg2 {[%clk 0:00:00]}  Qb2+ {[%clk 0:00:04]} 0-1


[Site "https://www.chess.com"]

[Event "Titled Tuesday Blitz October 11 Early 2022"]
[White "Tworuszka, Michal"]
[Black "Perrine, Dalton"]
[WhiteFideId "1117858"]
[BlackFideId "2048434"]
[WhiteElo "2320"]
[BlackElo "2529"]
[Result "1-0"]
[Round "02"]
[TimeControl "180+1"]
[Date "2022.10.12"]
[WhiteClock "0:00:02"]
[BlackClock "0:00:04"]

1. d4 {[%clk 0:02:59]}  Nf6 {[%clk 0:02:57]} 2. c4 {[%clk 0:02:59]}  c5 {[%clk 0:02:58]} 3. d5 {[%clk 0:02:58]}  b5 {[%clk 0:02:58]} 4. cxb5 {[%clk 0:02:58]}  a6 {[%clk 0:02:59]} 5. e3 {[%clk 0:02:58]}  e6 {[%clk 0:02:57]} 6. Nc3 {[%clk 0:02:47]}  exd5 {[%clk 0:02:57]} 7. Nxd5 {[%clk 0:02:46]}  Bb7 {[%clk 0:02:58]} 8. Nxf6+ {[%clk 0:02:41]}  Qxf6 {[%clk 0:02:59]} 9. bxa6 {[%clk 0:02:31]}  Bxa6 {[%clk 0:02:53]} 10. Bxa6 {[%clk 0:02:27]}  Qxa6 {[%clk 0:02:52]} 11. Ne2 {[%clk 0:02:14]}  Nc6 {[%clk 0:02:43]} 12. O-O {[%clk 0:02:11]}  Nb4 {[%clk 0:02:43]} 13. Bd2 {[%clk 0:02:01]}  Be7 {[%clk 0:02:27]} 14. Bxb4 {[%clk 0:01:53]}  cxb4 {[%clk 0:02:27]} 15. Nd4 {[%clk 0:01:53]}  O-O {[%clk 0:02:23]} 16. Qg4 {[%clk 0:01:50]}  Bf6 {[%clk 0:02:20]} 17. Qxd7 {[%clk 0:01:43]}  Rfd8 {[%clk 0:02:20]} 18. Qg4 {[%clk 0:01:42]}  Bxd4 {[%clk 0:02:05]} 19. exd4 {[%clk 0:01:43]}  Qc4 {[%clk 0:02:06]} 20. Rfd1 {[%clk 0:01:34]}  Rxa2 {[%clk 0:01:58]} 21. Rxa2 {[%clk 0:01:21]}  Qxa2 {[%clk 0:01:58]} 22. Qg5 {[%clk 0:01:09]}  Rd5 {[%clk 0:01:23]} 23. Qc1 {[%clk 0:00:50]}  g6 {[%clk 0:01:15]} 24. Qd2 {[%clk 0:00:44]}  Qc4 {[%clk 0:01:02]} 25. h3 {[%clk 0:00:36]}  h5 {[%clk 0:00:59]} 26. Qe3 {[%clk 0:00:31]}  Kg7 {[%clk 0:00:51]} 27. g3 {[%clk 0:00:20]}  Qc2 {[%clk 0:00:42]} 28. Rd2 {[%clk 0:00:17]}  Qc1+ {[%clk 0:00:33]} 29. Kg2 {[%clk 0:00:17]}  Qc6 {[%clk 0:00:34]} 30. Kh2 {[%clk 0:00:14]}  Qd6 {[%clk 0:00:31]} 31. Qe4 {[%clk 0:00:11]}  f5 {[%clk 0:00:26]} 32. Qd3 {[%clk 0:00:11]}  h4 {[%clk 0:00:22]} 33. Qe3 {[%clk 0:00:10]}  Kf6 {[%clk 0:00:18]} 34. Kg1 {[%clk 0:00:09]}  hxg3 {[%clk 0:00:18]} 35. fxg3 {[%clk 0:00:10]}  Kg7 {[%clk 0:00:17]} 36. h4 {[%clk 0:00:09]}  Qd8 {[%clk 0:00:13]} 37. Kh2 {[%clk 0:00:06]}  Kf7 {[%clk 0:00:12]} 38. Kg2 {[%clk 0:00:03]}  Qf6 {[%clk 0:00:13]} 39. Re2 {[%clk 0:00:02]}  Rxd4 {[%clk 0:00:10]} 40. Qe8+ {[%clk 0:00:02]}  Kg7 {[%clk 0:00:09]} 41. Re7+ {[%clk 0:00:03]}  Kh6 {[%clk 0:00:10]} 42. Kh3 {[%clk 0:00:01]}  Rd2 {[%clk 0:00:07]} 43. Rf7 {[%clk 0:00:01]}  Qd4 {[%clk 0:00:04]} 44. Qf8+ {[%clk 0:00:01]}  Kh5 {[%clk 0:00:04]} 45. Rh7# {[%clk 0:00:02]} 1-0


[Site "https://www.chess.com"]

[Event "Titled Tuesday Blitz October 11 Early 2022"]
[White "Vaibhav Jayant Raut"]
[Black "Zomorrodian, Eilia"]
[WhiteFideId "5089034"]
[BlackFideId "12551805"]
[WhiteElo "2147"]
[BlackElo "2078"]
[Result "1-0"]
[Round "02"]
[TimeControl "180+1"]
[Date "2022.10.12"]
[WhiteClock "0:00:07"]
[BlackClock "0:00:07"]

1. d4 {[%clk 0:03:00]}  Nf6 {[%clk 0:02:04]} 2. Nf3 {[%clk 0:02:59]}  g6 {[%clk 0:02:05]} 3. Bf4 {[%clk 0:02:58]}  Bg7 {[%clk 0:02:06]} 4. e3 {[%clk 0:02:58]}  O-O {[%clk 0:02:07]} 5. h3 {[%clk 0:02:57]}  d6 {[%clk 0:02:07]} 6. Nbd2 {[%clk 0:02:56]}  c5 {[%clk 0:02:08]} 7. c3 {[%clk 0:02:56]}  Nc6 {[%clk 0:02:09]} 8. Be2 {[%clk 0:02:55]}  Bf5 {[%clk 0:02:09]} 9. O-O {[%clk 0:02:55]}  a6 {[%clk 0:02:09]} 10. a4 {[%clk 0:02:54]}  cxd4 {[%clk 0:02:09]} 11. exd4 {[%clk 0:02:44]}  h6 {[%clk 0:02:08]} 12. Re1 {[%clk 0:02:41]}  g5 {[%clk 0:02:07]} 13. Bh2 {[%clk 0:02:39]}  Bg6 {[%clk 0:02:06]} 14. Qb3 {[%clk 0:02:36]}  Qd7 {[%clk 0:02:04]} 15. Nc4 {[%clk 0:02:35]}  Rae8 {[%clk 0:01:59]} 16. Rad1 {[%clk 0:02:22]}  Nd5 {[%clk 0:01:43]} 17. Nxd6 {[%clk 0:02:10]}  exd6 {[%clk 0:01:15]} 18. Qxd5 {[%clk 0:02:09]}  Re6 {[%clk 0:01:16]} 19. Qa2 {[%clk 0:01:48]}  d5 {[%clk 0:01:02]} 20. Bf1 {[%clk 0:01:34]}  Rfe8 {[%clk 0:01:00]} 21. Qa1 {[%clk 0:01:34]}  Bc2 {[%clk 0:00:36]} 22. Rxe6 {[%clk 0:01:30]}  Rxe6 {[%clk 0:00:35]} 23. Re1 {[%clk 0:01:29]}  Na5 {[%clk 0:00:21]} 24. Rxe6 {[%clk 0:01:02]}  Qxe6 {[%clk 0:00:21]} 25. Be5 {[%clk 0:00:52]}  f6 {[%clk 0:00:21]} 26. Bc7 {[%clk 0:00:49]}  Nc4 {[%clk 0:00:17]} 27. a5 {[%clk 0:00:39]}  Be4 {[%clk 0:00:14]} 28. b3 {[%clk 0:00:36]}  Nd6 {[%clk 0:00:11]} 29. Bxd6 {[%clk 0:00:32]}  Qxd6 {[%clk 0:00:10]} 30. Nd2 {[%clk 0:00:33]}  Bg6 {[%clk 0:00:10]} 31. Qe1 {[%clk 0:00:32]}  h5 {[%clk 0:00:10]} 32. b4 {[%clk 0:00:30]}  g4 {[%clk 0:00:09]} 33. hxg4 {[%clk 0:00:28]}  hxg4 {[%clk 0:00:10]} 34. g3 {[%clk 0:00:28]}  Bh6 {[%clk 0:00:11]} 35. Nb3 {[%clk 0:00:28]}  Be4 {[%clk 0:00:11]} 36. Bg2 {[%clk 0:00:28]}  f5 {[%clk 0:00:11]} 37. Nc5 {[%clk 0:00:26]}  Qc6 {[%clk 0:00:10]} 38. Bxe4 {[%clk 0:00:24]}  fxe4 {[%clk 0:00:11]} 39. Qe2 {[%clk 0:00:24]}  Qg6 {[%clk 0:00:11]} 40. c4 {[%clk 0:00:17]}  e3 {[%clk 0:00:10]} 41. cxd5 {[%clk 0:00:15]}  Qb1+ {[%clk 0:00:09]} 42. Kg2 {[%clk 0:00:15]}  Qxb4 {[%clk 0:00:10]} 43. Qxg4+ {[%clk 0:00:14]}  Kh8 {[%clk 0:00:10]} 44. Qc8+ {[%clk 0:00:13]}  Kh7 {[%clk 0:00:10]} 45. Qd7+ {[%clk 0:00:10]}  Bg7 {[%clk 0:00:10]} 46. Qf5+ {[%clk 0:00:09]}  Kg8 {[%clk 0:00:09]} 47. Qe6+ {[%clk 0:00:09]}  Kh8 {[%clk 0:00:09]} 48. fxe3 {[%clk 0:00:09]}  Qd2+ {[%clk 0:00:09]} 49. Kh3 {[%clk 0:00:10]}  Qd1 {[%clk 0:00:10]} 50. Qc8+ {[%clk 0:00:08]}  Kh7 {[%clk 0:00:10]} 51. Qf5+ {[%clk 0:00:09]}  Kg8 {[%clk 0:00:10]} 52. Qe4 {[%clk 0:00:08]}  Qh5+ {[%clk 0:00:09]} 53. Kg2 {[%clk 0:00:07]}  Qd1 {[%clk 0:00:10]} 54. Qe6+ {[%clk 0:00:07]}  Kh8 {[%clk 0:00:10]} 55. Qc8+ {[%clk 0:00:06]}  Kh7 {[%clk 0:00:11]} 56. Qf5+ {[%clk 0:00:07]}  Kh8 {[%clk 0:00:11]} 57. Qf3 {[%clk 0:00:07]}  Qd2+ {[%clk 0:00:10]} 58. Kh3 {[%clk 0:00:07]}  Qxa5 {[%clk 0:00:11]} 59. d6 {[%clk 0:00:06]}  Qb5 {[%clk 0:00:06]} 60. d7 {[%clk 0:00:06]}  Qb6 {[%clk 0:00:05]} 61. Qh5+ {[%clk 0:00:06]}  Kg8 {[%clk 0:00:05]} 62. Qe8+ {[%clk 0:00:07]}  Kh7 {[%clk 0:00:06]} 63. d8=Q {[%clk 0:00:06]}  Qh6+ {[%clk 0:00:06]} 64. Qh4 {[%clk 0:00:06]}  Qxh4+ {[%clk 0:00:07]} 65. Kxh4 {[%clk 0:00:07]} 1-0


[Site "https://www.chess.com"]

[Event "Titled Tuesday Blitz October 11 Early 2022"]
[White "Van Foreest, Jorden"]
[Black "Huber, Benedikt"]
[WhiteFideId "1039784"]
[BlackFideId "12923583"]
[WhiteElo "2649"]
[BlackElo "2199"]
[Result "1-0"]
[Round "02"]
[TimeControl "180+1"]
[Date "2022.10.12"]
[WhiteClock "0:01:31"]
[BlackClock "0:00:11"]

1. d4 {[%clk 0:03:00]}  e6 {[%clk 0:02:58]} 2. Nf3 {[%clk 0:02:56]}  f5 {[%clk 0:02:58]} 3. Bg5 {[%clk 0:02:56]}  Be7 {[%clk 0:02:58]} 4. Bxe7 {[%clk 0:02:55]}  Qxe7 {[%clk 0:02:59]} 5. Nc3 {[%clk 0:02:54]}  Nf6 {[%clk 0:02:59]} 6. e3 {[%clk 0:02:49]}  b6 {[%clk 0:02:58]} 7. Bc4 {[%clk 0:02:46]}  d6 {[%clk 0:02:50]} 8. Qe2 {[%clk 0:02:39]}  O-O {[%clk 0:02:46]} 9. Bb3 {[%clk 0:02:32]}  Ba6 {[%clk 0:02:43]} 10. Qd2 {[%clk 0:02:28]}  Ne4 {[%clk 0:02:40]} 11. Nxe4 {[%clk 0:02:21]}  fxe4 {[%clk 0:02:41]} 12. Ng1 {[%clk 0:02:22]}  c5 {[%clk 0:02:40]} 13. a3 {[%clk 0:02:08]}  cxd4 {[%clk 0:02:34]} 14. exd4 {[%clk 0:02:06]}  Nc6 {[%clk 0:02:20]} 15. Nh3 {[%clk 0:02:05]}  Rac8 {[%clk 0:02:11]} 16. Ba2 {[%clk 0:02:04]}  Qf6 {[%clk 0:02:00]} 17. c3 {[%clk 0:02:03]}  Kh8 {[%clk 0:01:53]} 18. Ng5 {[%clk 0:01:58]}  d5 {[%clk 0:01:47]} 19. f3 {[%clk 0:01:58]}  h6 {[%clk 0:01:39]} 20. h4 {[%clk 0:01:57]}  Bd3 {[%clk 0:00:57]} 21. Qe3 {[%clk 0:01:52]}  e5 {[%clk 0:00:42]} 22. dxe5 {[%clk 0:01:47]}  Qxe5 {[%clk 0:00:39]} 23. fxe4 {[%clk 0:01:45]}  dxe4 {[%clk 0:00:38]} 24. Nf7+ {[%clk 0:01:39]}  Rxf7 {[%clk 0:00:35]} 25. Bxf7 {[%clk 0:01:40]}  Na5 {[%clk 0:00:19]} 26. Qg5 {[%clk 0:01:32]}  Qc7 {[%clk 0:00:14]} 27. Be6 {[%clk 0:01:31]}  Re8 {[%clk 0:00:12]} 28. Qg6 {[%clk 0:01:31]}  Qe7 {[%clk 0:00:12]} 29. Bf5 {[%clk 0:01:31]}  Nc4 {[%clk 0:00:11]} 30. Qh7# {[%clk 0:01:31]} 1-0


[Site "https://www.chess.com"]

[Event "Titled Tuesday Blitz October 11 Early 2022"]
[White "Villanueva, Nelson"]
[Black "Kosteniuk, Alexandra"]
[WhiteFideId "5204127"]
[BlackFideId "4128125"]
[WhiteElo "2278"]
[BlackElo "2469"]
[Result "0-1"]
[Round "02"]
[TimeControl "180+1"]
[Date "2022.10.12"]
[WhiteClock "0:00:11"]
[BlackClock "0:00:19"]

1. d4 {[%clk 0:03:00]}  f5 {[%clk 0:02:59]} 2. c4 {[%clk 0:02:56]}  Nf6 {[%clk 0:02:58]} 3. Nf3 {[%clk 0:02:57]}  g6 {[%clk 0:02:59]} 4. g3 {[%clk 0:02:57]}  Bg7 {[%clk 0:02:59]} 5. Bg2 {[%clk 0:02:58]}  O-O {[%clk 0:03:00]} 6. O-O {[%clk 0:02:57]}  d6 {[%clk 0:03:00]} 7. Nc3 {[%clk 0:02:56]}  a5 {[%clk 0:03:00]} 8. Qc2 {[%clk 0:02:54]}  Na6 {[%clk 0:02:56]} 9. a3 {[%clk 0:02:53]}  c5 {[%clk 0:02:51]} 10. Rd1 {[%clk 0:02:53]}  Qe8 {[%clk 0:02:41]} 11. Bg5 {[%clk 0:02:43]}  Bd7 {[%clk 0:02:33]} 12. dxc5 {[%clk 0:02:38]}  Nxc5 {[%clk 0:02:32]} 13. Bxf6 {[%clk 0:02:27]}  Bxf6 {[%clk 0:02:31]} 14. Nd5 {[%clk 0:02:27]}  Ba4 {[%clk 0:02:30]} 15. Qd2 {[%clk 0:02:15]}  Nb3 {[%clk 0:02:28]} 16. Qe3 {[%clk 0:02:03]}  Nxa1 {[%clk 0:02:26]} 17. Rxa1 {[%clk 0:02:03]}  Bc6 {[%clk 0:02:11]} 18. Nc7 {[%clk 0:02:02]}  Qf7 {[%clk 0:02:11]} 19. Nxa8 {[%clk 0:01:38]}  Rxa8 {[%clk 0:02:12]} 20. Qd2 {[%clk 0:01:36]}  Qxc4 {[%clk 0:02:06]} 21. Rc1 {[%clk 0:01:36]}  Qd5 {[%clk 0:01:52]} 22. Qc2 {[%clk 0:01:34]}  Qb5 {[%clk 0:01:48]} 23. b3 {[%clk 0:01:21]}  a4 {[%clk 0:01:46]} 24. b4 {[%clk 0:01:14]}  Rc8 {[%clk 0:01:36]} 25. Qd2 {[%clk 0:01:09]}  Bd7 {[%clk 0:01:15]} 26. Rxc8+ {[%clk 0:00:59]}  Bxc8 {[%clk 0:01:16]} 27. h4 {[%clk 0:01:00]}  Be6 {[%clk 0:00:56]} 28. Ng5 {[%clk 0:00:46]}  Bb3 {[%clk 0:00:46]} 29. e4 {[%clk 0:00:39]}  b6 {[%clk 0:00:40]} 30. exf5 {[%clk 0:00:31]}  Qxf5 {[%clk 0:00:40]} 31. Qe3 {[%clk 0:00:31]}  b5 {[%clk 0:00:36]} 32. Bh3 {[%clk 0:00:26]}  Qe5 {[%clk 0:00:31]} 33. Qf3 {[%clk 0:00:20]}  Bd5 {[%clk 0:00:29]} 34. Qg4 {[%clk 0:00:12]}  Qe1+ {[%clk 0:00:27]} 35. Bf1 {[%clk 0:00:11]}  Bc4 {[%clk 0:00:19]} 0-1


[Site "https://www.chess.com"]

[Event "Titled Tuesday Blitz October 11 Early 2022"]
[White "Visakh N R"]
[Black "Shaik Sumer Arsh"]
[WhiteFideId "25012223"]
[BlackFideId "45020000"]
[WhiteElo "2466"]
[BlackElo "2190"]
[Result "1-0"]
[Round "02"]
[TimeControl "180+1"]
[Date "2022.10.12"]
[WhiteClock "0:00:26"]
[BlackClock "0:00:01"]

1. Nf3 {[%clk 0:03:00]}  d5 {[%clk 0:02:59]} 2. b3 {[%clk 0:02:59]}  Bg4 {[%clk 0:02:57]} 3. Bb2 {[%clk 0:02:58]}  Nd7 {[%clk 0:02:56]} 4. e3 {[%clk 0:02:58]}  c6 {[%clk 0:02:49]} 5. Be2 {[%clk 0:02:58]}  e6 {[%clk 0:02:47]} 6. O-O {[%clk 0:02:57]}  Ngf6 {[%clk 0:02:48]} 7. c4 {[%clk 0:02:56]}  Bd6 {[%clk 0:02:46]} 8. d4 {[%clk 0:02:55]}  Qe7 {[%clk 0:02:42]} 9. Ne5 {[%clk 0:02:53]}  Bf5 {[%clk 0:02:31]} 10. Nd2 {[%clk 0:02:49]}  O-O {[%clk 0:02:26]} 11. Ndf3 {[%clk 0:02:49]}  a5 {[%clk 0:02:23]} 12. Bd3 {[%clk 0:02:47]}  Be4 {[%clk 0:02:10]} 13. Qc2 {[%clk 0:02:39]}  Rfc8 {[%clk 0:01:45]} 14. Rac1 {[%clk 0:02:24]}  Nf8 {[%clk 0:01:35]} 15. Rfd1 {[%clk 0:02:17]}  Ba3 {[%clk 0:01:21]} 16. c5 {[%clk 0:02:07]}  Bxb2 {[%clk 0:01:17]} 17. Qxb2 {[%clk 0:02:08]}  Bxd3 {[%clk 0:00:38]} 18. Nxd3 {[%clk 0:02:03]}  Ne4 {[%clk 0:00:39]} 19. Nd2 {[%clk 0:02:00]}  Nxd2 {[%clk 0:00:33]} 20. Rxd2 {[%clk 0:01:58]}  Nd7 {[%clk 0:00:34]} 21. a3 {[%clk 0:01:50]}  f6 {[%clk 0:00:32]} 22. Re2 {[%clk 0:01:46]}  e5 {[%clk 0:00:31]} 23. e4 {[%clk 0:01:45]}  dxe4 {[%clk 0:00:25]} 24. Rxe4 {[%clk 0:01:42]}  f5 {[%clk 0:00:26]} 25. Ree1 {[%clk 0:01:40]}  e4 {[%clk 0:00:23]} 26. f3 {[%clk 0:01:40]}  Re8 {[%clk 0:00:19]} 27. b4 {[%clk 0:01:38]}  axb4 {[%clk 0:00:15]} 28. axb4 {[%clk 0:01:39]}  Qf6 {[%clk 0:00:15]} 29. fxe4 {[%clk 0:01:33]}  fxe4 {[%clk 0:00:16]} 30. Nf2 {[%clk 0:01:33]}  e3 {[%clk 0:00:16]} 31. Ng4 {[%clk 0:01:31]}  Qf4 {[%clk 0:00:15]} 32. Qb3+ {[%clk 0:01:30]}  Kh8 {[%clk 0:00:13]} 33. Nxe3 {[%clk 0:01:30]}  Nf6 {[%clk 0:00:10]} 34. Qd3 {[%clk 0:01:27]}  Rad8 {[%clk 0:00:07]} 35. Rcd1 {[%clk 0:01:04]}  h5 {[%clk 0:00:04]} 36. h3 {[%clk 0:00:58]}  Ne4 {[%clk 0:00:02]} 37. Qf1 {[%clk 0:00:53]}  Qg5 {[%clk 0:00:01]} 38. Nf5 {[%clk 0:00:46]}  Ng3 {[%clk 0:00:01]} 39. Nxg3 {[%clk 0:00:36]}  Qxg3 {[%clk 0:00:02]} 40. Rxe8+ {[%clk 0:00:29]}  Rxe8 {[%clk 0:00:03]} 41. Qf2 {[%clk 0:00:29]}  Qg5 {[%clk 0:00:02]} 42. b5 {[%clk 0:00:27]}  cxb5 {[%clk 0:00:01]} 43. d5 {[%clk 0:00:27]}  Rc8 {[%clk 0:00:01]} 44. d6 {[%clk 0:00:27]}  Rd8 {[%clk 0:00:01]} 45. d7 {[%clk 0:00:26]} 1-0


[Site "https://www.chess.com"]